[Event "*** MasterClass Titled Tuesday Blitz"]
[Site "Chess.com"]
[Date "2017.12.05"]
[Round "4"]
[White "TARS-JJ"]
[Black "ImadAK"]
[Result "0-1"]
[WhiteElo "1077"]
[BlackElo "1320"]
[TimeControl "180+2"]
[EndTime "14:58:27 PST"]
[Termination "ImadAK won by resignation"]

1. e4 {[%clk 0:03:00.1]} 1... c5 {[%clk 0:03:01.3]} 2. f4 {[%clk 0:03:00.5]}
2... Nc6 {[%clk 0:03:02.7]} 3. Nf3 {[%clk 0:02:59.6]} 3... d6 {[%clk 0:03:03.8]}
4. d3 {[%clk 0:02:59.7]} 4... Bg4 {[%clk 0:03:02.1]} 5. Be2 {[%clk 0:03:00.1]}
5... g6 {[%clk 0:03:02.8]} 6. O-O {[%clk 0:02:59.7]} 6... Bg7 {[%clk 0:03:03]}
7. c3 {[%clk 0:02:58.1]} 7... Bxf3 {[%clk 0:02:57.1]} 8. Bxf3 {[%clk 0:02:58.6]}
8... e5 {[%clk 0:02:58.2]} 9. fxe5 {[%clk 0:02:58.5]} 9... Nxe5 {[%clk
0:03:00.1]} 10. Bf4 {[%clk 0:02:56.1]} 10... Nc6 {[%clk 0:02:43.7]} 11. d4
{[%clk 0:02:35.6]} 11... cxd4 {[%clk 0:02:42.2]} 12. cxd4 {[%clk 0:02:34.9]}
12... Nxd4 {[%clk 0:02:43]} 13. Nc3 {[%clk 0:02:34.5]} 13... Nf6 {[%clk
0:02:35.6]} 14. Rc1 {[%clk 0:02:28.8]} 14... Nxf3+ {[%clk 0:02:36.1]} 15. Qxf3
{[%clk 0:02:26.7]} 15... O-O {[%clk 0:02:36.3]} 16. Rfd1 {[%clk 0:02:25.3]}
16... Ne8 {[%clk 0:02:30.1]} 17. Nd5 {[%clk 0:02:20.1]} 17... Qd7 {[%clk
0:02:27]} 18. b4 {[%clk 0:02:03.6]} 18... Rd8 {[%clk 0:02:26.5]} 19. Rc7 {[%clk
0:02:01.6]} 19... Nxc7 {[%clk 0:02:25.4]} 20. Nxc7 {[%clk 0:02:01.3]} 20... Qxc7
{[%clk 0:02:27.3]} 21. e5 {[%clk 0:02:00.2]} 21... dxe5 {[%clk 0:02:23.2]} 22.
Rxd8 {[%clk 0:02:00.3]} 22... Rxd8 {[%clk 0:02:24]} 23. Bxe5 {[%clk 0:02:00.8]}
23... Bxe5 {[%clk 0:02:25.9]} 0-1

[Event "*** MasterClass Titled Tuesday Blitz"]
[Site "Chess.com"]
[Date "2017.12.05"]
[Round "4"]
[White "dyziotomi99"]
[Black "visa"]
[Result "1-0"]
[WhiteElo "2445"]
[BlackElo "2185"]
[TimeControl "180+2"]
[EndTime "14:58:47 PST"]
[Termination "dyziotomi99 won by checkmate"]

1. c4 {[%clk 0:02:51.5]} 1... b6 {[%clk 0:03:00.4]} 2. Nf3 {[%clk 0:02:49.8]}
2... Bb7 {[%clk 0:03:01]} 3. Nc3 {[%clk 0:02:49.6]} 3... e6 {[%clk 0:03:01.7]}
4. g3 {[%clk 0:02:49]} 4... f5 {[%clk 0:03:02.4]} 5. Bg2 {[%clk 0:02:49.8]} 5...
Nf6 {[%clk 0:03:02.9]} 6. O-O {[%clk 0:02:49.8]} 6... Be7 {[%clk 0:03:03.8]} 7.
d4 {[%clk 0:02:47.5]} 7... Ne4 {[%clk 0:03:00.8]} 8. Bd2 {[%clk 0:02:46.6]} 8...
Nxc3 {[%clk 0:03:01.1]} 9. Bxc3 {[%clk 0:02:47.2]} 9... Be4 {[%clk 0:03:02.5]}
10. Re1 {[%clk 0:02:44.5]} 10... O-O {[%clk 0:03:02.2]} 11. Rc1 {[%clk
0:02:44.7]} 11... Bf6 {[%clk 0:03:01]} 12. d5 {[%clk 0:02:40.9]} 12... Bxc3
{[%clk 0:02:48.5]} 13. Rxc3 {[%clk 0:02:41.1]} 13... Qf6 {[%clk 0:02:49.2]} 14.
Nd4 {[%clk 0:02:39.6]} 14... Bxg2 {[%clk 0:02:48.5]} 15. Kxg2 {[%clk 0:02:39.2]}
15... e5 {[%clk 0:02:49.8]} 16. Nb5 {[%clk 0:02:38.6]} 16... Na6 {[%clk
0:02:38.3]} 17. Ra3 {[%clk 0:02:38.7]} 17... c6 {[%clk 0:02:25.8]} 18. dxc6
{[%clk 0:02:31.3]} 18... Qxc6+ {[%clk 0:02:20.3]} 19. f3 {[%clk 0:02:10]} 19...
Qxc4 {[%clk 0:02:16.8]} 20. Nd6 {[%clk 0:02:08.3]} 20... Qb4 {[%clk 0:02:05]}
21. Rxa6 {[%clk 0:02:03.6]} 21... Qxb2 {[%clk 0:02:05.8]} 22. Qd5+ {[%clk
0:02:02.3]} 22... Kh8 {[%clk 0:02:04.1]} 23. Nf7+ {[%clk 0:02:03]} 23... Rxf7
{[%clk 0:01:40.7]} 24. Qxa8+ {[%clk 0:02:02.6]} 24... Rf8 {[%clk 0:01:39.2]} 25.
Qxf8# {[%clk 0:02:02.9]} 1-0

[Event "*** MasterClass Titled Tuesday Blitz"]
[Site "Chess.com"]
[Date "2017.12.05"]
[Round "4"]
[White "SharkAnto55"]
[Black "larso"]
[Result "0-1"]
[WhiteElo "2360"]
[BlackElo "2397"]
[TimeControl "180+2"]
[EndTime "14:59:11 PST"]
[Termination "larso won by resignation"]

1. d4 {[%clk 0:02:59.7]} 1... Nf6 {[%clk 0:02:58.1]} 2. c4 {[%clk 0:03:00.6]}
2... g6 {[%clk 0:02:54.4]} 3. Nc3 {[%clk 0:03:00.3]} 3... Bg7 {[%clk 0:02:54.8]}
4. e4 {[%clk 0:03:01.2]} 4... O-O {[%clk 0:02:52.6]} 5. h3 {[%clk 0:03:02.9]}
5... d6 {[%clk 0:02:52.9]} 6. Bg5 {[%clk 0:03:04.1]} 6... c5 {[%clk 0:02:50.9]}
7. d5 {[%clk 0:03:04.9]} 7... b5 {[%clk 0:02:52.2]} 8. cxb5 {[%clk 0:03:04.1]}
8... a6 {[%clk 0:02:52.9]} 9. Nf3 {[%clk 0:03:05.3]} 9... axb5 {[%clk
0:02:49.6]} 10. Bxb5 {[%clk 0:03:07.2]} 10... Nxe4 {[%clk 0:02:50.1]} 11. Nxe4
{[%clk 0:02:46.1]} 11... Qa5+ {[%clk 0:02:49.9]} 12. Nfd2 {[%clk 0:02:36.7]}
12... Qxb5 {[%clk 0:02:50.4]} 13. Qe2 {[%clk 0:02:36.1]} 13... Qxe2+ {[%clk
0:02:49.2]} 14. Kxe2 {[%clk 0:02:38]} 14... Ba6+ {[%clk 0:02:50.8]} 15. Kd1
{[%clk 0:02:33.6]} 15... Re8 {[%clk 0:02:50.4]} 16. Kc2 {[%clk 0:02:30.3]} 16...
Bb7 {[%clk 0:02:49.4]} 17. Nc3 {[%clk 0:02:18.1]} 17... Nd7 {[%clk 0:02:36.4]}
18. Rhe1 {[%clk 0:02:17.6]} 18... Kf8 {[%clk 0:02:36.9]} 19. a4 {[%clk
0:02:07.9]} 19... Bxc3 {[%clk 0:02:34.4]} 20. bxc3 {[%clk 0:02:08.1]} 20... Bxd5
{[%clk 0:02:35.9]} 21. a5 {[%clk 0:02:05.2]} 21... Ra6 {[%clk 0:02:36.5]} 22. c4
{[%clk 0:01:59.3]} 22... Bc6 {[%clk 0:02:37.1]} 23. Nb3 {[%clk 0:01:55.7]} 23...
Bxg2 {[%clk 0:02:35.6]} 24. h4 {[%clk 0:01:52.9]} 24... f6 {[%clk 0:02:35.1]}
25. Bh6+ {[%clk 0:01:46.9]} 25... Kf7 {[%clk 0:02:36]} 26. Bd2 {[%clk
0:01:47.8]} 26... Ne5 {[%clk 0:02:33.7]} 0-1

[Event "*** MasterClass Titled Tuesday Blitz"]
[Site "Chess.com"]
[Date "2017.12.05"]
[Round "4"]
[White "Korchmar_Vasiliy"]
[Black "Frolik67"]
[Result "0-1"]
[WhiteElo "2527"]
[BlackElo "2414"]
[TimeControl "180+2"]
[EndTime "14:59:15 PST"]
[Termination "Frolik67 won by resignation"]

1. d4 {[%clk 0:02:57.3]} 1... e6 {[%clk 0:02:57.9]} 2. Bf4 {[%clk 0:02:57.7]}
2... d5 {[%clk 0:02:58.2]} 3. e3 {[%clk 0:02:58.8]} 3... f5 {[%clk 0:02:58.9]}
4. Nf3 {[%clk 0:02:59.6]} 4... Nf6 {[%clk 0:02:56.4]} 5. h3 {[%clk 0:02:59.1]}
5... c6 {[%clk 0:02:55.9]} 6. Be2 {[%clk 0:02:58.5]} 6... Bd6 {[%clk 0:02:57.1]}
7. Bxd6 {[%clk 0:02:50.8]} 7... Qxd6 {[%clk 0:02:59]} 8. O-O {[%clk 0:02:52]}
8... O-O {[%clk 0:02:57.9]} 9. c4 {[%clk 0:02:52.9]} 9... Nbd7 {[%clk
0:02:57.7]} 10. Nc3 {[%clk 0:02:54.1]} 10... Ne4 {[%clk 0:02:58.1]} 11. Rc1
{[%clk 0:02:53.4]} 11... b6 {[%clk 0:02:57.4]} 12. a3 {[%clk 0:02:47.8]} 12...
Bb7 {[%clk 0:02:58.2]} 13. b4 {[%clk 0:02:45.8]} 13... a5 {[%clk 0:02:53.9]} 14.
c5 {[%clk 0:02:35.1]} 14... Qe7 {[%clk 0:02:47.9]} 15. Nxe4 {[%clk 0:02:14]}
15... fxe4 {[%clk 0:02:47.6]} 16. Nd2 {[%clk 0:02:15.5]} 16... axb4 {[%clk
0:02:46.8]} 17. axb4 {[%clk 0:02:16.1]} 17... b5 {[%clk 0:02:48]} 18. Ra1 {[%clk
0:02:11.9]} 18... e5 {[%clk 0:02:48]} 19. Nb3 {[%clk 0:02:12.5]} 19... exd4
{[%clk 0:02:42.6]} 20. Qxd4 {[%clk 0:02:11.5]} 20... Ne5 {[%clk 0:02:40.4]} 21.
Na5 {[%clk 0:01:59.3]} 21... Bc8 {[%clk 0:02:19.1]} 22. Bxb5 {[%clk 0:01:53.3]}
22... Bxh3 {[%clk 0:02:00.1]} 23. Bxc6 {[%clk 0:01:23.7]} 23... Nf3+ {[%clk
0:01:55.6]} 24. Kh1 {[%clk 0:01:23]} 24... Bxg2+ {[%clk 0:01:56.3]} 25. Kxg2
{[%clk 0:01:23]} 25... Qg5+ {[%clk 0:01:57.3]} 0-1

[Event "*** MasterClass Titled Tuesday Blitz"]
[Site "Chess.com"]
[Date "2017.12.05"]
[Round "4"]
[White "dtn70"]
[Black "MFBerna"]
[Result "1-0"]
[WhiteElo "2284"]
[BlackElo "2288"]
[TimeControl "180+2"]
[EndTime "14:59:22 PST"]
[Termination "dtn70 won by checkmate"]

1. e4 {[%clk 0:03:01.9]} 1... c5 {[%clk 0:03:00.2]} 2. Nf3 {[%clk 0:03:01.6]}
2... e6 {[%clk 0:03:01.4]} 3. d3 {[%clk 0:02:59.7]} 3... Nc6 {[%clk 0:03:00.9]}
4. g3 {[%clk 0:03:00]} 4... g6 {[%clk 0:03:02.1]} 5. Bg2 {[%clk 0:03:00.8]} 5...
Bg7 {[%clk 0:03:03.7]} 6. O-O {[%clk 0:03:01.5]} 6... Nge7 {[%clk 0:03:05.2]} 7.
Re1 {[%clk 0:03:02.5]} 7... d6 {[%clk 0:03:06.5]} 8. c3 {[%clk 0:03:03.4]} 8...
O-O {[%clk 0:03:08]} 9. d4 {[%clk 0:03:04.2]} 9... e5 {[%clk 0:03:05.2]} 10.
dxc5 {[%clk 0:02:59.5]} 10... dxc5 {[%clk 0:03:07.1]} 11. Qc2 {[%clk 0:02:56.7]}
11... h6 {[%clk 0:03:06.5]} 12. Nbd2 {[%clk 0:02:55.4]} 12... Be6 {[%clk
0:03:07.3]} 13. Nf1 {[%clk 0:02:55.7]} 13... Qc7 {[%clk 0:03:07.3]} 14. Ne3
{[%clk 0:02:48.4]} 14... Rad8 {[%clk 0:03:07.6]} 15. b3 {[%clk 0:02:46.3]} 15...
b6 {[%clk 0:02:57.6]} 16. Bb2 {[%clk 0:02:46.6]} 16... f5 {[%clk 0:02:57.4]} 17.
exf5 {[%clk 0:02:45]} 17... gxf5 {[%clk 0:02:59.3]} 18. Rad1 {[%clk 0:02:32.1]}
18... e4 {[%clk 0:02:59.6]} 19. Nh4 {[%clk 0:02:29.5]} 19... Ne5 {[%clk
0:02:57.7]} 20. c4 {[%clk 0:01:57.9]} 20... Nd3 {[%clk 0:02:44.5]} 21. Bxg7
{[%clk 0:01:55.4]} 21... Nxe1 {[%clk 0:02:39.1]} 22. Qb2 {[%clk 0:01:45.8]}
22... Rxd1 {[%clk 0:02:32]} 23. Nxd1 {[%clk 0:01:42.1]} 23... Rf7 {[%clk
0:02:16.6]} 24. Be5 {[%clk 0:01:33.4]} 24... Qd7 {[%clk 0:02:05.6]} 25. Qe2
{[%clk 0:01:33.1]} 25... Nd3 {[%clk 0:02:00.1]} 26. Bc3 {[%clk 0:01:32.4]} 26...
Nc6 {[%clk 0:01:57.1]} 27. Qh5 {[%clk 0:01:30.6]} 27... Kh7 {[%clk 0:01:54.6]}
28. Qg6# {[%clk 0:01:27.5]} 1-0

[Event "*** MasterClass Titled Tuesday Blitz"]
[Site "Chess.com"]
[Date "2017.12.05"]
[Round "4"]
[White "FollowMeIBeg"]
[Black "oliver98"]
[Result "0-1"]
[WhiteElo "1807"]
[BlackElo "2278"]
[TimeControl "180+2"]
[EndTime "14:59:28 PST"]
[Termination "oliver98 won by checkmate"]

1. d4 {[%clk 0:03:01.9]} 1... Nf6 {[%clk 0:02:43]} 2. c4 {[%clk 0:03:02.6]} 2...
c5 {[%clk 0:02:43.6]} 3. d5 {[%clk 0:03:03.3]} 3... b5 {[%clk 0:02:44.5]} 4.
cxb5 {[%clk 0:03:04]} 4... a6 {[%clk 0:02:25.8]} 5. bxa6 {[%clk 0:03:03.8]} 5...
g6 {[%clk 0:02:26.3]} 6. Nc3 {[%clk 0:03:01.7]} 6... Bg7 {[%clk 0:02:27.7]} 7.
e4 {[%clk 0:02:54]} 7... O-O {[%clk 0:02:24.9]} 8. f4 {[%clk 0:02:54.4]} 8...
Qa5 {[%clk 0:02:23.8]} 9. e5 {[%clk 0:02:53]} 9... Ne4 {[%clk 0:02:23.3]} 10.
Bd2 {[%clk 0:02:50.8]} 10... Nxd2 {[%clk 0:02:23.9]} 11. Qxd2 {[%clk 0:02:52.7]}
11... d6 {[%clk 0:02:22.9]} 12. Nf3 {[%clk 0:02:53.1]} 12... Bg4 {[%clk
0:02:20.4]} 13. Ng5 {[%clk 0:02:50.1]} 13... dxe5 {[%clk 0:02:17.8]} 14. h3
{[%clk 0:02:48.9]} 14... Bc8 {[%clk 0:02:14.5]} 15. fxe5 {[%clk 0:02:42.8]}
15... Bxe5 {[%clk 0:02:15]} 16. Bd3 {[%clk 0:02:44.7]} 16... Bg3+ {[%clk
0:02:08.2]} 17. Kd1 {[%clk 0:02:40.1]} 17... Bxa6 {[%clk 0:02:06.1]} 18. Kc2
{[%clk 0:02:36.4]} 18... Bxd3+ {[%clk 0:01:50.9]} 19. Qxd3 {[%clk 0:02:37.1]}
19... Be5 {[%clk 0:01:50.9]} 20. Raf1 {[%clk 0:02:34.7]} 20... Na6 {[%clk
0:01:46.7]} 21. a3 {[%clk 0:02:35.1]} 21... Rab8 {[%clk 0:01:41.9]} 22. Rb1
{[%clk 0:02:24.9]} 22... c4 {[%clk 0:01:41.1]} 23. Qe4 {[%clk 0:02:16.8]} 23...
Bf6 {[%clk 0:01:33.5]} 24. h4 {[%clk 0:02:10.5]} 24... Rxb2+ {[%clk 0:01:33.5]}
25. Rxb2 {[%clk 0:01:45.5]} 25... Qxc3+ {[%clk 0:01:33.4]} 26. Kb1 {[%clk
0:01:45.5]} 26... Qxb2# {[%clk 0:01:34.4]} 0-1

[Event "*** MasterClass Titled Tuesday Blitz"]
[Site "Chess.com"]
[Date "2017.12.05"]
[Round "4"]
[White "nikitakhoroshev"]
[Black "Jahonas"]
[Result "0-1"]
[WhiteElo "2404"]
[BlackElo "2241"]
[TimeControl "180+2"]
[EndTime "15:00:15 PST"]
[Termination "Jahonas won by resignation"]

1. g3 {[%clk 0:02:57.8]} 1... d5 {[%clk 0:02:46.6]} 2. Bg2 {[%clk 0:02:58]} 2...
Nf6 {[%clk 0:02:47.2]} 3. d3 {[%clk 0:02:59.1]} 3... c6 {[%clk 0:02:48.5]} 4. e4
{[%clk 0:02:59.7]} 4... e5 {[%clk 0:02:48.8]} 5. Nc3 {[%clk 0:02:59.7]} 5...
dxe4 {[%clk 0:02:49.8]} 6. dxe4 {[%clk 0:03:00]} 6... Qxd1+ {[%clk 0:02:49.1]}
7. Nxd1 {[%clk 0:02:59.3]} 7... Be6 {[%clk 0:02:50]} 8. f3 {[%clk 0:03:00]} 8...
Nbd7 {[%clk 0:02:50.5]} 9. Bh3 {[%clk 0:03:01.2]} 9... Bxh3 {[%clk 0:02:50.3]}
10. Nxh3 {[%clk 0:03:03.1]} 10... h6 {[%clk 0:02:51.5]} 11. Ke2 {[%clk
0:03:04.2]} 11... O-O-O {[%clk 0:02:51.6]} 12. Nhf2 {[%clk 0:03:06.1]} 12... Nc5
{[%clk 0:02:51.9]} 13. b3 {[%clk 0:03:05.9]} 13... Ne6 {[%clk 0:02:51.7]} 14. c3
{[%clk 0:03:07.1]} 14... Bc5 {[%clk 0:02:51.8]} 15. Nd3 {[%clk 0:03:07.8]} 15...
Bd6 {[%clk 0:02:50.6]} 16. Be3 {[%clk 0:03:09]} 16... b6 {[%clk 0:02:50.8]} 17.
N1b2 {[%clk 0:03:08]} 17... Nd7 {[%clk 0:02:50.1]} 18. b4 {[%clk 0:03:06.6]}
18... f6 {[%clk 0:02:50.2]} 19. a4 {[%clk 0:03:06.8]} 19... Kc7 {[%clk
0:02:50.4]} 20. a5 {[%clk 0:03:06.8]} 20... Ra8 {[%clk 0:02:46.6]} 21. Ra2
{[%clk 0:03:06.5]} 21... b5 {[%clk 0:02:45.7]} 22. c4 {[%clk 0:03:03.4]} 22...
a6 {[%clk 0:02:40.7]} 23. Rc1 {[%clk 0:03:03.7]} 23... Kb7 {[%clk 0:02:41.3]}
24. c5 {[%clk 0:02:59.6]} 24... Be7 {[%clk 0:02:39.3]} 25. Rd1 {[%clk
0:03:00.8]} 25... Rad8 {[%clk 0:02:40.2]} 26. Rd2 {[%clk 0:03:00.3]} 26... Rhe8
{[%clk 0:02:38.3]} 27. Ra1 {[%clk 0:03:01]} 27... Ndf8 {[%clk 0:02:39]} 28. Rad1
{[%clk 0:03:02]} 28... Nd4+ {[%clk 0:02:38.4]} 29. Bxd4 {[%clk 0:03:02.8]} 29...
Rxd4 {[%clk 0:02:40.2]} 30. Rb1 {[%clk 0:02:56.7]} 30... Red8 {[%clk 0:02:40]}
31. Nd1 {[%clk 0:02:55.3]} 31... Ne6 {[%clk 0:02:38.9]} 32. Ne3 {[%clk
0:02:55.5]} 32... g6 {[%clk 0:02:36.4]} 33. Rdd1 {[%clk 0:02:48.7]} 33... Bf8
{[%clk 0:02:34.9]} 34. Rb2 {[%clk 0:02:31.4]} 34... h5 {[%clk 0:02:33.7]} 35.
Nc2 {[%clk 0:02:29.7]} 35... R4d7 {[%clk 0:02:32.2]} 36. Rbb1 {[%clk 0:02:25.7]}
36... Bh6 {[%clk 0:02:30.9]} 37. Nf2 {[%clk 0:02:26.4]} 37... Rd2+ {[%clk
0:02:27.6]} 38. Ke1 {[%clk 0:02:25.4]} 38... Rxc2 {[%clk 0:02:27]} 39. Rxd8
{[%clk 0:02:27.3]} 39... Nxd8 {[%clk 0:02:27.8]} 40. Rd1 {[%clk 0:02:29.2]}
40... Kc7 {[%clk 0:02:27.2]} 41. Rd6 {[%clk 0:02:31.1]} 41... Bg7 {[%clk
0:02:24.7]} 42. f4 {[%clk 0:02:18.7]} 42... Nf7 {[%clk 0:02:22.5]} 43. Rd3
{[%clk 0:02:14.6]} 43... Bf8 {[%clk 0:02:16.6]} 44. Rf3 {[%clk 0:02:13.5]} 44...
Be7 {[%clk 0:02:15.7]} 45. Nd3 {[%clk 0:02:13.4]} 45... Rc4 {[%clk 0:02:13.6]}
46. Kd2 {[%clk 0:02:13.3]} 46... Rxe4 {[%clk 0:02:14]} 47. h3 {[%clk 0:02:12]}
47... f5 {[%clk 0:02:14.4]} 48. g4 {[%clk 0:02:12.1]} 48... hxg4 {[%clk
0:02:15]} 49. hxg4 {[%clk 0:02:14]} 49... exf4 {[%clk 0:02:15.4]} 50. Rg3 {[%clk
0:02:15.9]} 50... fxg3 {[%clk 0:02:16.2]} 0-1

[Event "*** MasterClass Titled Tuesday Blitz"]
[Site "Chess.com"]
[Date "2017.12.05"]
[Round "4"]
[White "Jadeit90"]
[Black "Mistheoretical"]
[Result "0-1"]
[WhiteElo "2318"]
[BlackElo "2270"]
[TimeControl "180+2"]
[EndTime "15:00:24 PST"]
[Termination "Mistheoretical won by resignation"]

1. e4 {[%clk 0:03:01.9]} 1... e6 {[%clk 0:03:01.1]} 2. d4 {[%clk 0:03:02.7]}
2... d5 {[%clk 0:03:03]} 3. Nd2 {[%clk 0:03:04]} 3... Nf6 {[%clk 0:03:03.3]} 4.
e5 {[%clk 0:03:05.1]} 4... Nfd7 {[%clk 0:03:04.9]} 5. c3 {[%clk 0:03:06.7]} 5...
c5 {[%clk 0:03:06.6]} 6. f4 {[%clk 0:03:08.2]} 6... Nc6 {[%clk 0:03:07]} 7. Ndf3
{[%clk 0:03:09.4]} 7... cxd4 {[%clk 0:03:00.7]} 8. cxd4 {[%clk 0:03:11.3]} 8...
a5 {[%clk 0:03:01.9]} 9. Bd3 {[%clk 0:03:09.5]} 9... a4 {[%clk 0:03:03.1]} 10.
a3 {[%clk 0:03:08.8]} 10... Nb6 {[%clk 0:03:02.8]} 11. Ne2 {[%clk 0:03:10]}
11... Bd7 {[%clk 0:03:03.7]} 12. O-O {[%clk 0:03:11.3]} 12... Na5 {[%clk
0:03:04.8]} 13. f5 {[%clk 0:03:10.4]} 13... exf5 {[%clk 0:02:55.7]} 14. Bg5
{[%clk 0:03:11.5]} 14... Be7 {[%clk 0:02:52.1]} 15. Bxe7 {[%clk 0:03:12.1]}
15... Qxe7 {[%clk 0:02:54]} 16. Nf4 {[%clk 0:03:13.1]} 16... g6 {[%clk 0:02:45]}
17. Rc1 {[%clk 0:03:02.5]} 17... Nb3 {[%clk 0:02:43.9]} 18. Rc3 {[%clk
0:03:02.2]} 18... O-O {[%clk 0:02:37.8]} 19. Qe1 {[%clk 0:02:51.7]} 19... Rfc8
{[%clk 0:02:33.6]} 20. Rxc8+ {[%clk 0:02:51.6]} 20... Rxc8 {[%clk 0:02:33.6]}
21. Qg3 {[%clk 0:02:52.3]} 21... Be6 {[%clk 0:02:23.7]} 22. h4 {[%clk
0:02:30.9]} 22... Rc1 {[%clk 0:02:04.8]} 23. h5 {[%clk 0:02:27]} 23... Rxf1+
{[%clk 0:01:53.1]} 24. Kxf1 {[%clk 0:02:27]} 24... Na5 {[%clk 0:01:36.4]} 25.
hxg6 {[%clk 0:02:27.8]} 25... hxg6 {[%clk 0:01:36.7]} 26. Nxg6 {[%clk
0:02:29.2]} 26... fxg6 {[%clk 0:01:33.9]} 27. Qxg6+ {[%clk 0:02:31.1]} 27... Kf8
{[%clk 0:01:35.1]} 28. Ng5 {[%clk 0:02:30.7]} 28... Bf7 {[%clk 0:01:18.5]} 29.
Nh7+ {[%clk 0:02:28.6]} 29... Ke8 {[%clk 0:01:16.3]} 30. Qxb6 {[%clk 0:02:29.4]}
30... Nc4 {[%clk 0:01:13.2]} 31. Nf6+ {[%clk 0:02:21.4]} 31... Kf8 {[%clk
0:01:12.2]} 32. Bxc4 {[%clk 0:01:57]} 32... dxc4 {[%clk 0:01:14.1]} 33. Qb4
{[%clk 0:01:54.1]} 33... Qxb4 {[%clk 0:01:11.5]} 34. axb4 {[%clk 0:01:55.2]}
34... c3 {[%clk 0:01:12.2]} 35. bxc3 {[%clk 0:01:55.3]} 35... a3 {[%clk
0:01:13.4]} 36. Nd7+ {[%clk 0:01:55.8]} 36... Ke7 {[%clk 0:01:09.2]} 0-1

[Event "*** MasterClass Titled Tuesday Blitz"]
[Site "Chess.com"]
[Date "2017.12.05"]
[Round "4"]
[White "Scott-fox21"]
[Black "ZCorrales"]
[Result "0-1"]
[WhiteElo "2200"]
[BlackElo "2153"]
[TimeControl "180+2"]
[EndTime "15:00:40 PST"]
[Termination "ZCorrales won by checkmate"]

1. d4 {[%clk 0:03:01.9]} 1... Nf6 {[%clk 0:02:59.9]} 2. c4 {[%clk 0:03:03.2]}
2... g6 {[%clk 0:03:00.3]} 3. Nc3 {[%clk 0:03:03.4]} 3... d5 {[%clk 0:02:59.6]}
4. cxd5 {[%clk 0:03:03.7]} 4... Nxd5 {[%clk 0:03:00.1]} 5. Bd2 {[%clk 0:03:05]}
5... Bg7 {[%clk 0:03:00.3]} 6. e4 {[%clk 0:03:06.1]} 6... Nxc3 {[%clk
0:03:00.5]} 7. Bxc3 {[%clk 0:03:07.3]} 7... O-O {[%clk 0:02:57.5]} 8. Qd2 {[%clk
0:03:04.8]} 8... c5 {[%clk 0:02:54.2]} 9. d5 {[%clk 0:03:05.8]} 9... e6 {[%clk
0:02:49.7]} 10. d6 {[%clk 0:03:03.2]} 10... Bxc3 {[%clk 0:02:47.7]} 11. bxc3
{[%clk 0:03:02.8]} 11... Nc6 {[%clk 0:02:40.9]} 12. Nf3 {[%clk 0:03:02.7]} 12...
Bd7 {[%clk 0:01:54.7]} 13. e5 {[%clk 0:03:00.9]} 13... f6 {[%clk 0:01:53.7]} 14.
exf6 {[%clk 0:02:20.1]} 14... Qxf6 {[%clk 0:01:53.8]} 15. Bd3 {[%clk 0:02:17.1]}
15... Ne5 {[%clk 0:01:49.8]} 16. Be4 {[%clk 0:02:07.4]} 16... Nc4 {[%clk
0:01:49.3]} 17. Qd3 {[%clk 0:01:54.4]} 17... Nxd6 {[%clk 0:01:32.5]} 18. Qxd6
{[%clk 0:01:45.8]} 18... Qxc3+ {[%clk 0:01:33.3]} 19. Ke2 {[%clk 0:01:42.8]}
19... Bb5+ {[%clk 0:01:33.4]} 20. Bd3 {[%clk 0:01:36.1]} 20... Rad8 {[%clk
0:01:18.9]} 21. Qxe6+ {[%clk 0:01:35.8]} 21... Rf7 {[%clk 0:01:10.1]} 22. Bxb5
{[%clk 0:01:11.4]} 22... Qb2+ {[%clk 0:01:08]} 23. Kf1 {[%clk 0:00:40.9]} 23...
Qxa1+ {[%clk 0:01:07.7]} 24. Ne1 {[%clk 0:00:42]} 24... Qf6 {[%clk 0:01:06.1]}
25. Bc4 {[%clk 0:00:42.1]} 25... Qxf2# {[%clk 0:01:05.5]} 0-1

[Event "*** MasterClass Titled Tuesday Blitz"]
[Site "Chess.com"]
[Date "2017.12.05"]
[Round "4"]
[White "likantrophuss"]
[Black "AlexanderL"]
[Result "0-1"]
[WhiteElo "2458"]
[BlackElo "2561"]
[TimeControl "180+2"]
[EndTime "15:01:02 PST"]
[Termination "AlexanderL won by resignation"]

1. Nf3 {[%clk 0:03:01.5]} 1... e6 {[%clk 0:03:01.9]} 2. g3 {[%clk 0:03:01.6]}
2... b5 {[%clk 0:03:01.8]} 3. Bg2 {[%clk 0:03:02.1]} 3... Bb7 {[%clk 0:03:00.4]}
4. O-O {[%clk 0:03:02.9]} 4... Nf6 {[%clk 0:03:01.4]} 5. d4 {[%clk 0:03:02.8]}
5... Be7 {[%clk 0:03:01.6]} 6. b3 {[%clk 0:03:03.4]} 6... O-O {[%clk 0:03:02.2]}
7. Bb2 {[%clk 0:03:04.8]} 7... c5 {[%clk 0:02:55]} 8. Na3 {[%clk 0:03:02.9]}
8... a6 {[%clk 0:02:55.5]} 9. c4 {[%clk 0:03:01.3]} 9... bxc4 {[%clk 0:02:48.5]}
10. Nxc4 {[%clk 0:03:00.3]} 10... cxd4 {[%clk 0:02:47.3]} 11. Qxd4 {[%clk
0:02:56.6]} 11... Nc6 {[%clk 0:02:47.5]} 12. Qd2 {[%clk 0:02:54.2]} 12... Ne4
{[%clk 0:02:40.5]} 13. Qf4 {[%clk 0:02:49.7]} 13... d5 {[%clk 0:02:41.5]} 14.
Nce5 {[%clk 0:02:46.6]} 14... Nxe5 {[%clk 0:02:42.5]} 15. Bxe5 {[%clk
0:02:44.7]} 15... Bf6 {[%clk 0:02:41.3]} 16. Rfc1 {[%clk 0:02:39.1]} 16... Bxe5
{[%clk 0:02:36]} 17. Nxe5 {[%clk 0:02:33.4]} 17... Nf6 {[%clk 0:02:22.5]} 18.
Rc5 {[%clk 0:02:23.9]} 18... Rc8 {[%clk 0:02:21.1]} 19. Rac1 {[%clk 0:02:22.9]}
19... Rxc5 {[%clk 0:02:20.1]} 20. Rxc5 {[%clk 0:02:24.7]} 20... Qd6 {[%clk
0:02:16.6]} 21. Nd3 {[%clk 0:02:20.5]} 21... Qxf4 {[%clk 0:02:16.6]} 22. gxf4
{[%clk 0:02:20.6]} 22... Rc8 {[%clk 0:02:17.5]} 23. e3 {[%clk 0:02:14.1]} 23...
Ne8 {[%clk 0:02:15.2]} 24. Bf1 {[%clk 0:02:11.8]} 24... Nd6 {[%clk 0:02:13.9]}
25. Rxc8+ {[%clk 0:02:11.3]} 25... Bxc8 {[%clk 0:02:15.1]} 26. Nc5 {[%clk
0:02:12.2]} 26... a5 {[%clk 0:02:15.8]} 27. a4 {[%clk 0:02:04.4]} 27... Kf8
{[%clk 0:02:15.9]} 28. Bd3 {[%clk 0:02:02.2]} 28... Ke7 {[%clk 0:02:16.2]} 29.
Kf1 {[%clk 0:02:01.9]} 29... g6 {[%clk 0:02:16.6]} 30. Ke2 {[%clk 0:02:01.4]}
30... Kd8 {[%clk 0:02:17.8]} 31. Ba6 {[%clk 0:01:49.7]} 31... Ne4 {[%clk
0:01:59.3]} 32. Nb7+ {[%clk 0:00:42.4]} 32... Kc7 {[%clk 0:01:52.8]} 33. Nxa5
{[%clk 0:00:41.9]} 33... Bxa6+ {[%clk 0:01:53.1]} 34. Kf3 {[%clk 0:00:30.2]}
34... Nc5 {[%clk 0:01:43.7]} 0-1